bitfinex-derivatives/quotes_BTCF0:USTF0_20210706
["timestamp","ask_amount","ask_price","bid_price","bid_amount"]
[1625569386953,0.001,33808.0,33807.0,2.49422708]
[1625569387253,0.001,33808.0,33807.0,1.45411595]
[1625569387954,0.001,33808.0,33807.0,1.69469139]
[1625569388153,0.001,33808.0,33807.0,1.00125481]
[1625569388852,0.001,33808.0,33807.0,1.34803631]
[1625569389404,0.001,33808.0,33807.0,1.35153331]
[1625569390104,0.001,33808.0,33807.0,1.00475181]
[1625569390607,0.001,33808.0,33807.0,1.6987127]
[1625569391457,0.001,33808.0,33807.0,2.73965684]
[1625569391756,0.001,33808.0,33807.0,1.6987127]
[1625569391857,0.39583984,33813.0,33807.0,1.6987127]
[1625569391982,0.39583984,33813.0,33812.0,0.48115088]
[1625569391983,0.51461094,33813.0,33812.0,0.48115088]
[1625569392081,0.51461094,33813.0,33812.0,0.76095088]
[1625569392176,0.34207899,33815.0,33812.0,0.76095088]
[1625569392366,0.002,33813.0,33812.0,0.76095088]
[1625569392472,0.002,33813.0,33812.0,1.45514464]
[1625569392659,0.002,33813.0,33812.0,2.49639995]
[1625569392759,0.002,33813.0,33812.0,2.49989636]
[1625569394566,0.002,33813.0,33812.0,3.7148424]
[1625569395366,0.002,33814.0,33812.0,3.7148424]
[1625569395568,0.002,33814.0,33813.0,2.95111347]
[1625569395670,0.002,33814.0,33813.0,2.9546098]
[1625569396019,0.002,33814.0,33813.0,3.19518524]
[1625569398373,0.68530758,33820.0,33813.0,3.19518524]
[1625569398473,0.18500758,33820.0,33813.0,3.19518524]
[1625569398571,0.7125833,33821.0,33813.0,3.69518524]
[1625569398673,1.02839857,33823.0,33817.0,1.04176735]
[1625569398822,0.003,33824.0,33817.0,1.21533046]
[1625569399977,0.003,33824.0,33818.0,0.00349602]
[1625569400076,0.003,33824.0,33823.0,1.01215632]
[1625569400579,0.004,33829.0,33823.0,1.01215632]
[1625569400677,1.20222288,33832.0,33823.0,1.01215632]
[1625569400829,1.20255046,33833.0,33823.0,2.22741557]
[1625569401027,1.37931884,33834.0,33823.0,2.22741557]
[1625569401028,1.20768378,33834.0,33824.0,1.21854344]
[1625569401380,0.003,33825.0,33824.0,1.21854344]
[1625569401578,0.003,33825.0,33824.0,1.21504786]
[1625569402081,0.003,33825.0,33824.0,1.4556233]
[1625569402585,0.17205835,33831.0,33824.0,2.84413738]
[1625569402885,1.37724207,33842.0,33829.0,1.38835052]
[1625569403083,0.9732,33849.0,33829.0,1.38835052]
[1625569403084,1.37685683,33844.0,33830.0,1.66289628]
[1625569403787,1.37699681,33845.0,33830.0,1.66289628]
[1625569404085,1.37699681,33845.0,33844.0,1.19113176]
[1625569405036,1.37639674,33846.0,33844.0,1.19113176]
[1625569405237,1.37628309,33845.0,33844.0,1.19113176]
[1625569405686,2.52162483,33849.0,33844.0,1.19113176]
[1625569405687,1.37726097,33847.0,33844.0,1.19113176]
[1625569406189,1.37681283,33848.0,33844.0,1.19113176]
[1625569406389,2.3500405,33849.0,33844.0,1.19113176]
[1625569406990,1.37659519,33848.0,33844.0,1.19113176]
[1625569407290,1.37959519,33848.0,33844.0,1.19113176]
[1625569407640,0.003,33848.0,33844.0,1.19113176]
[1625569409297,0.003,33848.0,33844.0,0.96230176]
[1625569414764,1.375767,33848.0,33844.0,0.96230176]
[1625569414964,1.3726569,33847.0,33844.0,0.96230176]
[1625569415514,1.37145187,33845.0,33844.0,0.96230176]
[1625569417120,2.91295328,33845.0,33844.0,0.96230176]
[1625569417821,1.37145187,33845.0,33844.0,0.96230176]
[1625569421435,1.38759639,33845.0,33844.0,0.96230176]
[1625569422737,2.59196275,33845.0,33844.0,0.96230176]
[1625569426006,1.22051088,33845.0,33844.0,0.96230176]
[1625569426498,2.59719176,33845.0,33844.0,0.96230176]
[1625569428861,2.25399206,33845.0,33844.0,0.96230176]
[1625569429410,1.0496257,33845.0,33844.0,0.96230176]
[1625569430111,0.01614452,33845.0,33844.0,0.96230176]
[1625569431465,0.01616646,33846.0,33844.0,0.96230176]
[1625569432863,1.05120372,33846.0,33844.0,0.96230176]
[1625569433113,0.01616646,33846.0,33844.0,0.96230176]
[1625569433213,0.01616169,33845.0,33844.0,0.96230176]
[1625569433764,0.01616172,33846.0,33844.0,0.96230176]
[1625569433865,0.01616172,33846.0,33844.0,1.28061176]
[1625569433967,0.01616147,33845.0,33844.0,1.28061176]
[1625569434266,0.0161615,33846.0,33844.0,1.28061176]
[1625569434518,0.0161615,33845.0,33844.0,1.28061176]
[1625569434818,0.01616125,33846.0,33844.0,1.28061176]
[1625569435071,0.01616091,33845.0,33844.0,1.28061176]
[1625569435370,0.01616096,33847.0,33844.0,1.28061176]
[1625569438580,1.05274842,33847.0,33844.0,1.28061176]
[1625569439030,0.01616172,33846.0,33844.0,1.28061176]
[1625569439129,0.01616172,33846.0,33844.0,0.96230176]
[1625569439330,1.05278925,33846.0,33844.0,0.96230176]
[1625569439629,0.0161829,33845.0,33844.0,0.96230176]
[1625569439830,1.05336113,33845.0,33844.0,0.96230176]
[1625569440530,0.0161829,33845.0,33844.0,0.96230176]
[1625569441433,1.05337618,33845.0,33844.0,0.96230176]
[1625569441683,2.26341752,33845.0,33844.0,0.96230176]
[1625569442390,1.05337618,33845.0,33844.0,0.96230176]
[1625569442785,2.26350624,33845.0,33844.0,0.96230176]
[1625569447344,1.05337618,33845.0,33844.0,1.24327176]
[1625569447845,0.0161829,33845.0,33844.0,1.24327176]
[1625569448149,1.04034707,33848.0,33844.0,1.24327176]
[1625569448248,0.001,33848.0,33844.0,1.24327176]
[1625569448750,0.001,33848.0,33845.0,0.00349342]
[1625569448951,0.001,33848.0,33845.0,1.03298975]
[1625569449303,0.001,33848.0,33846.0,0.00349333]
[1625569449402,0.001,33848.0,33846.0,1.03231505]
[1625569449605,0.5418451,33856.0,33846.0,1.03231505]
[1625569449705,0.003,33858.0,33846.0,0.00349333]
[1625569449806,0.003,33858.0,33847.0,0.50349311]
[1625569450002,0.9009,33865.0,33848.0,0.00349308]
[1625569450105,1.21638186,33863.0,33850.0,1.19837689]
[1625569450206,1.21638186,33863.0,33851.0,0.5]
[1625569450310,0.004,33863.0,33852.0,1.19988813]
[1625569450431,0.004,33863.0,33853.0,0.5]
[1625569450516,0.004,33863.0,33862.0,0.96230176]
[1625569450711,0.004,33863.0,33862.0,1.22895176]
[1625569452117,1.21692002,33863.0,33862.0,1.22895176]
[1625569452315,1.21292002,33863.0,33862.0,1.22895176]
[1625569453270,1.21668243,33864.0,33862.0,1.22895176]
[1625569453367,1.21668243,33864.0,33862.0,0.96230176]
[1625569453468,1.2126867,33863.0,33862.0,0.96230176]
[1625569454670,2.59864222,33863.0,33862.0,0.96230176]
[1625569456075,1.21676553,33864.0,33862.0,0.96230176]
[1625569456175,1.21676553,33864.0,33862.0,1.28615176]
[1625569456276,0.004,33864.0,33862.0,1.28615176]
[1625569456725,1.21279905,33863.0,33862.0,1.28615176]
[1625569457880,1.21685895,33864.0,33862.0,1.28615176]
[1625569458131,1.2134797,33863.0,33862.0,1.28615176]
[1625569458431,1.21295343,33864.0,33862.0,1.28615176]
[1625569458631,0.69318847,33863.0,33862.0,1.28615176]
[1625569460880,0.18028847,33863.0,33862.0,1.28615176]
[1625569461282,0.9009,33865.0,33862.0,1.28615176]
[1625569461485,0.9009,33865.0,33863.0,0.5]
[1625569461788,0.9009,33865.0,33862.0,1.28615176]
[1625569463840,0.9009,33865.0,33862.0,1.78615176]
[1625569464990,0.9009,33865.0,33862.0,1.28615176]
[1625569465389,0.9009,33865.0,33862.0,1.78615176]
[1625569465593,0.9009,33865.0,33862.0,1.28615176]
[1625569466141,0.9009,33865.0,33863.0,0.5]
[1625569466743,0.001,33867.0,33863.0,0.5]
[1625569466942,0.002,33872.0,33863.0,0.5]
[1625569467146,0.002,33872.0,33863.0,0.7]
[1625569467345,0.001,33869.0,33863.0,0.7]
[1625569467443,0.001,33869.0,33864.0,1.39565642]
[1625569467543,0.001,33869.0,33865.0,0.5]
[1625569468098,0.001,33869.0,33865.0,1.69474597]
[1625569468399,0.001,33869.0,33866.0,0.2]
[1625569468505,0.001,33869.0,33867.0,0.5]
[1625569468714,0.001,33869.0,33868.0,0.48115088]
[1625569468807,0.001,33869.0,33868.0,0.98115088]
[1625569468921,0.003,33879.0,33868.0,2.17223781]
[1625569469150,0.003,33879.0,33869.0,1.19102555]
[1625569469247,0.003,33879.0,33870.0,0.5]
[1625569469448,0.003,33879.0,33876.0,3.7314]
[1625569469552,0.003,33879.0,33876.0,4.0062]
[1625569469651,0.003,33879.0,33877.0,0.5]
[1625569470649,0.003,33879.0,33878.0,0.72172632]
[1625569472357,0.003,33879.0,33878.0,1.22172632]
[1625569472558,0.003,33879.0,33878.0,1.56476632]
[1625569472860,0.003,33879.0,33878.0,1.06476632]
[1625569474158,0.003,33879.0,33878.0,0.72172632]
[1625569476365,0.001,33883.0,33878.0,0.72172632]
[1625569476566,0.001,33883.0,33878.0,1.22172632]
[1625569476667,0.001,33883.0,33882.0,0.24057544]
[1625569485382,0.001,33887.0,33882.0,0.24057544]
[1625569486734,0.001,33887.0,33886.0,0.48115088]
[1625569488336,0.0173044,33887.0,33886.0,0.48115088]
[1625569494150,0.10354585,33887.0,33886.0,0.48115088]
[1625569494349,0.0173044,33887.0,33886.0,0.48115088]
[1625569494651,0.10354401,33887.0,33886.0,0.48115088]
[1625569495104,0.0173044,33887.0,33886.0,0.48115088]
[1625569495302,0.53410279,33887.0,33886.0,0.48115088]
[1625569495557,0.10358116,33887.0,33886.0,0.48115088]
[1625569496056,0.0173044,33887.0,33886.0,0.48115088]
[1625569497357,0.0163044,33887.0,33886.0,0.48115088]
[1625569497457,0.13752495,33887.0,33886.0,0.48115088]
[1625569498159,0.0512095,33887.0,33886.0,0.48115088]
[1625569499012,0.13757839,33887.0,33886.0,0.48115088]
[1625569499514,0.56856342,33887.0,33886.0,0.48115088]
[1625569499965,0.0512095,33887.0,33886.0,0.48115088]
[1625569500215,0.56856209,33887.0,33886.0,0.48115088]
[1625569500919,0.137579,33887.0,33886.0,0.48115088]
[1625569501775,0.0512095,33887.0,33886.0,0.48115088]
[1625569501875,0.56901197,33887.0,33886.0,0.48115088]
[1625569503177,1.6055934,33887.0,33886.0,0.48115088]
[1625569505228,2.81635067,33887.0,33886.0,0.48115088]
[1625569505529,1.6055934,33887.0,33886.0,0.48115088]
[1625569507334,2.81801596,33887.0,33886.0,0.48115088]
[1625569507432,2.78311086,33887.0,33886.0,0.48115088]
[1625569507583,1.5706883,33887.0,33886.0,0.48115088]
[1625569508083,0.53410687,33887.0,33886.0,0.48115088]
[1625569509335,0.53410687,33887.0,33886.0,0.48464096]
[1625569509586,0.53410687,33887.0,33886.0,0.48115088]
[1625569512896,0.0163044,33887.0,33886.0,0.48115088]
[1625569513143,1.81576255,33887.0,33886.0,0.48115088]
[1625569514549,3.02942836,33887.0,33886.0,0.48115088]
[1625569515300,1.81576255,33887.0,33886.0,0.48115088]
[1625569516002,3.03014611,33887.0,33886.0,0.48115088]
[1625569516303,4.41802687,33887.0,33886.0,0.48115088]
[1625569518660,5.98158663,33887.0,33886.0,0.48115088]
[1625569518759,5.98158663,33887.0,33882.0,0.24057544]
[1625569518961,6.22216207,33887.0,33882.0,0.24057544]
[1625569519061,6.25707266,33887.0,33882.0,0.23657544]
[1625569519158,6.25707266,33887.0,33879.0,0.24257544]
[1625569519159,5.73420762,33883.0,33879.0,0.24257544]
[1625569519359,5.73458852,33880.0,33879.0,0.24257544]
[1625569519460,5.95085852,33880.0,33879.0,0.24257544]
[1625569519558,5.95085852,33880.0,33879.0,0.002]
[1625569519863,5.96714482,33880.0,33874.0,0.003]
[1625569520066,5.73502541,33875.0,33874.0,0.003]
[1625569520658,5.75131295,33875.0,33874.0,0.003]
[1625569520962,6.47303927,33875.0,33874.0,0.003]
[1625569521061,7.16863096,33875.0,33874.0,0.003]
[1625569521164,7.20354767,33875.0,33874.0,0.003]
[1625569521461,7.20354767,33875.0,33863.0,0.1911079]
[1625569521563,8.94227242,33875.0,33864.0,0.51343018]
[1625569521763,3.13017585,33865.0,33860.0,0.51395146]
[1625569521863,3.34592585,33865.0,33860.0,0.51395146]
[1625569521964,3.34592585,33865.0,33859.0,0.51387728]
[1625569521965,1.73919006,33861.0,33859.0,0.51387728]
[1625569522165,1.73798282,33860.0,33858.0,0.51365581]
[1625569522414,0.52164051,33859.0,33858.0,0.51365581]
[1625569522714,1.73859005,33859.0,33858.0,0.51365581]
[1625569522917,1.24336683,33859.0,33858.0,0.51365581]
[1625569523515,0.72172632,33859.0,33858.0,1.71172063]
[1625569524114,0.72172632,33859.0,33858.0,3.08038541]
[1625569524416,0.72172632,33859.0,33858.0,1.71172063]
[1625569527120,1.24313562,33859.0,33858.0,0.51365581]
[1625569527320,0.72172632,33859.0,33858.0,0.51365581]
[1625569528725,0.72172632,33859.0,33858.0,1.70901752]
[1625569528826,0.72172632,33859.0,33858.0,2.02595752]
[1625569530330,0.72172632,33859.0,33858.0,0.83059581]
[1625569530530,0.72172632,33859.0,33858.0,0.51365581]
[1625569534690,0.48115088,33859.0,33858.0,0.51365581]
[1625569534791,0.48115088,33859.0,33858.0,0.83865581]
[1625569535541,0.48115088,33859.0,33858.0,2.0244557]
[1625569544711,0.48115088,33859.0,33858.0,0.83865581]
[1625569546918,0.48115088,33859.0,33858.0,0.51365581]
[1625569547018,0.48115088,33859.0,33858.0,0.51714777]
[1625569547318,0.48115088,33859.0,33858.0,0.51365581]
[1625569547518,0.48115088,33859.0,33858.0,0.51714775]
[1625569548821,0.48115088,33859.0,33858.0,0.00349194]
[1625569549222,0.49742329,33859.0,33858.0,0.00349194]
[1625569549420,0.49742329,33859.0,33857.0,0.24057544]
[1625569549522,0.49742329,33859.0,33853.0,0.50637199]
[1625569549722,0.01627322,33858.0,33853.0,0.50637199]
[1625569549975,0.01627322,33858.0,33854.0,0.00349273]
[1625569550273,0.01627322,33858.0,33853.0,0.00349273]
[1625569551076,0.24057544,33854.0,33853.0,0.00349273]
[1625569551176,0.56174544,33854.0,33853.0,0.00349273]
[1625569552382,0.56174544,33854.0,33852.0,0.00349281]
[1625569552683,0.56174544,33854.0,33853.0,0.16910304]
[1625569553183,0.56174544,33854.0,33853.0,0.17259585]
[1625569553383,0.56174544,33854.0,33853.0,0.00349281]
[1625569553683,0.57803453,33854.0,33853.0,0.00349281]
[1625569553783,0.57803453,33854.0,33850.0,0.17127944]
[1625569554139,3.7261,33851.0,33850.0,0.17127944]
[1625569554385,3.74239028,33851.0,33850.0,0.002]
[1625569554943,3.91564464,33851.0,33850.0,0.002]
[1625569555133,4.39679552,33851.0,33850.0,0.002]
[1625569555685,4.22354116,33851.0,33850.0,0.002]
[1625569555784,4.20725088,33851.0,33850.0,0.002]
[1625569555938,4.38050003,33851.0,33850.0,0.002]
[1625569556387,4.20725088,33851.0,33850.0,0.002]
[1625569557288,4.20725088,33851.0,33845.0,0.002]
[1625569559091,0.24057544,33846.0,33845.0,0.002]
[1625569559191,0.57350544,33846.0,33845.0,0.002]
[1625569559592,0.24057544,33846.0,33845.0,0.002]
[1625569559944,0.24057544,33846.0,33845.0,0.17097923]
[1625569560146,0.24057544,33846.0,33845.0,0.002]
[1625569560244,0.24057544,33846.0,33845.0,0.5123594]
[1625569560445,0.24057544,33846.0,33845.0,2.70652694]
[1625569561197,0.24057544,33846.0,33845.0,2.94710238]
[1625569564098,0.24057544,33846.0,33845.0,1.76562755]
[1625569564802,0.24057544,33846.0,33845.0,2.94801725]
[1625569566005,0.24057544,33846.0,33845.0,4.30018649]
[1625569566306,0.24057544,33846.0,33845.0,4.29818649]
[1625569566407,0.24157544,33849.0,33845.0,4.29818649]
[1625569566608,0.24157544,33849.0,33845.0,4.79818649]
[1625569566714,0.24157544,33849.0,33848.0,2.70581371]
[1625569566807,0.24157544,33849.0,33848.0,3.20581371]
[1625569566959,0.24157544,33849.0,33848.0,4.5599746]
[1625569567259,0.24157544,33849.0,33848.0,4.30404261]
[1625569570515,0.24157544,33849.0,33848.0,2.94988172]
[1625569571018,0.24157544,33849.0,33848.0,1.76608822]
[1625569571180,0.24157544,33849.0,33848.0,1.76259565]
[1625569571273,0.24157544,33849.0,33848.0,0.74791551]
[1625569572369,0.47501544,33849.0,33848.0,0.74791551]
[1625569573374,0.47501544,33849.0,33848.0,1.7745918]
[1625569573573,0.47501544,33849.0,33848.0,1.77808496]
[1625569574126,0.47501544,33849.0,33848.0,1.7745918]
[1625569574225,0.47501544,33849.0,33848.0,0.74791551]
[1625569574376,0.47501544,33849.0,33848.0,1.77710118]
[1625569575379,0.47401544,33849.0,33848.0,1.77710118]
[1625569576231,0.47401544,33849.0,33848.0,1.78059438]
[1625569576534,0.47401544,33849.0,33848.0,1.54001894]
[1625569576736,0.47401544,33849.0,33848.0,0.50734007]
[1625569576938,0.64770992,33849.0,33848.0,0.50734007]
[1625569577235,1.1288608,33849.0,33848.0,0.50734007]
[1625569577434,1.47628801,33849.0,33848.0,0.50734007]
[1625569577686,1.47628801,33849.0,33848.0,0.17214388]
[1625569578341,2.51918845,33849.0,33848.0,0.51591956]
[1625569580292,2.51918845,33849.0,33848.0,0.47161956]
[1625569581046,1.47628801,33849.0,33848.0,0.47161956]
[1625569581547,1.47628801,33849.0,33848.0,2.18778866]
[1625569581949,1.47628801,33849.0,33848.0,2.19128195]
[1625569582048,0.95516632,33849.0,33848.0,2.19128195]
[1625569582449,0.95516632,33849.0,33848.0,3.39064145]
[1625569583149,1.12906734,33849.0,33848.0,2.19128195]
[1625569583249,1.12906734,33849.0,33848.0,2.18778866]
[1625569583451,0.95516632,33849.0,33848.0,2.18778866]
[1625569583551,0.72172632,33849.0,33848.0,2.19128195]
[1625569583851,0.89562788,33849.0,33848.0,2.19128195]
[1625569584152,0.72172632,33849.0,33848.0,3.39066182]
[1625569584702,0.89562439,33849.0,33848.0,2.19128195]
[1625569584902,0.72172632,33849.0,33848.0,2.19128195]
[1625569585754,0.89563228,33849.0,33848.0,2.19128195]
[1625569586255,0.72172632,33849.0,33848.0,2.19128195]
[1625569586706,0.72172632,33849.0,33848.0,3.38995522]
[1625569586856,0.72172632,33849.0,33848.0,3.72161522]
[1625569589012,0.72172632,33849.0,33848.0,2.52294195]
[1625569589211,0.72172632,33849.0,33848.0,2.19128195]
[1625569589311,0.89563959,33849.0,33848.0,2.19128195]
[1625569589715,0.72172632,33849.0,33848.0,3.39114618]
[1625569590266,0.72172632,33849.0,33848.0,2.19128195]
[1625569590267,0.89564906,33849.0,33848.0,2.19128195]
[1625569591867,0.89564906,33849.0,33845.0,1.35729082]
[1625569591971,0.72172632,33849.0,33846.0,1.2014662]
[1625569592166,1.21660985,33847.0,33845.0,0.17194737]
[1625569592266,1.50415985,33847.0,33845.0,0.17194737]
[1625569592365,1.50415985,33847.0,33846.0,0.17201591]
[1625569592667,0.28755,33847.0,33846.0,0.17201591]
[1625569592766,0.30387712,33847.0,33846.0,0.17201591]
[1625569593519,0.54445256,33847.0,33846.0,0.17201591]
[1625569594020,0.54445256,33847.0,33842.0,1.20523856]
[1625569594320,0.17392371,33844.0,33843.0,0.00349363]
[1625569595472,0.41449915,33844.0,33843.0,0.00349363]
[1625569597276,0.24057544,33844.0,33843.0,1.20807954]
[1625569598430,0.41451125,33844.0,33843.0,0.00349363]
[1625569600386,0.24057544,33844.0,33843.0,0.00349363]
[1625569602339,0.25692891,33844.0,33843.0,0.00349363]
[1625569602441,0.50289891,33844.0,33843.0,0.00349363]
[1625569603141,0.50289891,33844.0,33842.0,0.00349387]
[1625569603441,0.01635366,33843.0,33842.0,0.00349387]
[1625569603541,0.2569291,33843.0,33842.0,0.00349387]
[1625569604091,0.24057544,33843.0,33842.0,0.00349387]
[1625569604193,0.24057544,33843.0,33842.0,1.20833627]
[1625569606994,0.41478952,33843.0,33842.0,2.5857271]
[1625569607247,0.24057544,33843.0,33842.0,2.5857271]
[1625569607597,0.41478834,33843.0,33842.0,2.5857271]
[1625569609398,0.24057544,33843.0,33842.0,2.5857271]
[1625569616066,0.41492031,33843.0,33842.0,2.5857271]
[1625569616569,0.41492031,33843.0,33842.0,4.13886296]
[1625569617270,0.41492031,33843.0,33842.0,2.5857271]
[1625569617470,0.24057544,33843.0,33842.0,2.5857271]
[1625569618222,0.41491969,33843.0,33842.0,2.5857271]
[1625569618621,0.24057544,33843.0,33842.0,2.5857271]
[1625569620173,0.25697235,33843.0,33842.0,2.5857271]
[1625569622026,0.25697235,33843.0,33842.0,3.62017887]
[1625569624331,0.43133466,33843.0,33842.0,3.62017887]
[1625569624629,0.43133466,33843.0,33842.0,5.17175894]
[1625569625934,0.41493775,33843.0,33842.0,5.17175894]
[1625569628393,0.24057544,33843.0,33842.0,5.17175894]
[1625569629091,0.25697165,33843.0,33842.0,5.17175894]
[1625569629444,0.24057544,33843.0,33842.0,5.17175894]
[1625569629897,0.24057544,33843.0,33842.0,5.49435894]
[1625569630246,0.41507437,33843.0,33842.0,5.49435894]
[1625569630997,0.41507437,33843.0,33842.0,5.99435894]
[1625569631096,0.41507437,33843.0,33842.0,6.00349891]
[1625569631297,0.24057544,33843.0,33842.0,7.73742713]
[1625569631397,0.17450102,33847.0,33842.0,7.73742713]
[1625569631497,1.7576,33933.0,33842.0,7.73742713]
[1625569631498,0.1744946,33849.0,33842.0,7.73742713]
[1625569631602,0.1744946,33849.0,33843.0,0.00912704]
[1625569631698,0.1744946,33849.0,33843.0,0.01262]
[1625569631800,1.0461043,33854.0,33848.0,5.19544389]
[1625569631898,1.0461043,33854.0,33850.0,0.72172632]
[1625569631997,1.04609539,33853.0,33850.0,6.26102479]
[1625569632199,1.28664672,33855.0,33850.0,6.26451768]
[1625569633899,0.24057544,33855.0,33850.0,6.26451768]
[1625569634200,1.28628476,33855.0,33850.0,6.26451768]
[1625569634401,1.04571903,33854.0,33850.0,6.26451768]
[1625569637358,1.28580139,33855.0,33850.0,6.26451768]
[1625569638258,0.24057544,33855.0,33850.0,6.26451768]
[1625569639161,0.24057544,33855.0,33850.0,6.26102479]
[1625569639262,0.001,33854.0,33850.0,6.26102479]
[1625569639462,0.001,33854.0,33853.0,3.62811138]
[1625569642214,0.34917543,33854.0,33853.0,3.62811138]
[1625569643820,0.001,33854.0,33853.0,3.62811138]
[1625569645273,1.04389288,33856.0,33853.0,3.62811138]
[1625569645474,1.04389288,33856.0,33855.0,2.24977772]
[1625569645673,1.04389288,33856.0,33855.0,1.03835895]
[1625569645873,2.26172517,33856.0,33855.0,1.03835895]
[1625569646174,2.26172517,33856.0,33854.0,1.03911116]
[1625569646275,0.24057544,33855.0,33854.0,1.2796866]
[1625569646377,2.50243456,33855.0,33854.0,0.24057544]
[1625569649683,2.50243456,33855.0,33853.0,1.03946034]
[1625569649782,2.51887132,33855.0,33853.0,1.03946034]
[1625569649883,3.91062242,33855.0,33854.0,0.34595162]
[1625569650082,3.89418566,33855.0,33854.0,0.34595162]
[1625569650285,4.15119791,33855.0,33854.0,0.34595162]
[1625569650584,2.75944681,33855.0,33852.0,1.03655267]
[1625569650834,1.04383838,33853.0,33852.0,1.03655267]
[1625569651834,1.73976701,33853.0,33852.0,1.72764721]
[1625569653588,2.95755754,33853.0,33852.0,1.72764721]
[1625569653688,3.17673754,33853.0,33852.0,1.72764721]
[1625569654040,3.19317917,33853.0,33852.0,1.72764721]
[1625569655100,3.17673754,33853.0,33852.0,1.72764721]
[1625569655200,1.95894701,33853.0,33852.0,1.72764721]
[1625569655451,1.95894701,33853.0,33852.0,2.93773399]
[1625569655549,1.73976701,33853.0,33852.0,2.93773399]
[1625569655650,0.69592863,33853.0,33852.0,2.93773399]
[1625569655898,0.69592863,33853.0,33852.0,2.94122695]
[1625569657251,1.73975788,33853.0,33852.0,2.94122695]
[1625569657753,0.69592863,33853.0,33852.0,2.94122695]
[1625569657955,1.7397601,33853.0,33852.0,2.94122695]
[1625569658055,1.75620102,33853.0,33852.0,2.94122695]
[1625569658707,0.71236955,33853.0,33852.0,2.94122695]
[1625569659157,1.75618302,33853.0,33852.0,2.94122695]
[1625569659257,2.03488302,33853.0,33852.0,2.94122695]
[1625569659608,2.03488302,33853.0,33852.0,1.73114017]
[1625569661915,3.25280354,33853.0,33852.0,1.73114017]
[1625569663819,3.25280354,33853.0,33852.0,0.6945875]
[1625569665025,3.23636262,33853.0,33852.0,0.6945875]
[1625569665173,3.25280438,33853.0,33852.0,0.6945875]
[1625569665474,4.64506797,33853.0,33852.0,0.6945875]
[1625569666078,4.64506797,33853.0,33852.0,0.69109454]
[1625569666179,4.64506797,33853.0,33851.0,0.69159051]
[1625569666378,2.95884705,33852.0,33851.0,0.69159051]
[1625569666578,2.97528884,33852.0,33851.0,1.72858428]
[1625569666930,2.97528884,33852.0,33851.0,1.73207746]
[1625569670336,3.19808884,33852.0,33851.0,1.73207746]
[1625569671640,4.59078697,33852.0,33851.0,1.73207746]
[1625569672244,4.59078697,33852.0,33851.0,0.69508369]
[1625569672343,4.59078697,33852.0,33851.0,0.69159051]
[1625569673102,4.59078697,33852.0,33851.0,0.69508385]
[1625569673453,4.59078697,33852.0,33851.0,1.73450532]
[1625569675960,4.59078697,33852.0,33851.0,0.69508385]
[1625569679721,4.59078697,33852.0,33851.0,0.69159051]
[1625569680923,4.67938697,33852.0,33851.0,0.69159051]
[1625569681424,4.59078697,33852.0,33851.0,0.69159051]
[1625569681825,4.59078697,33852.0,33851.0,1.73585649]
[1625569682023,5.11346579,33852.0,33851.0,2.25807071]
[1625569682574,5.20226579,33852.0,33851.0,2.25807071]
[1625569683127,5.11346579,33852.0,33851.0,2.25807071]
[1625569686033,5.11346579,33852.0,33851.0,2.26156408]
[1625569686533,5.11346579,33852.0,33851.0,2.25807071]
[1625569686834,5.11346579,33852.0,33851.0,1.21380473]
[1625569687536,5.11346579,33852.0,33851.0,2.25892861]
[1625569687886,5.11346579,33852.0,33851.0,2.26242199]
[1625569688585,5.11346579,33852.0,33851.0,1.21729811]
[1625569689089,5.11346579,33852.0,33851.0,2.26249442]
[1625569690090,3.11226579,33852.0,33851.0,2.26249442]
[1625569690194,0.9930688,33852.0,33851.0,2.26249442]
[1625569690296,0.52267882,33852.0,33851.0,3.48181822]
[1625569690493,0.001,33855.0,33851.0,3.48181822]
[1625569690494,0.001,33855.0,33851.0,5.54932069]
[1625569690496,0.34814617,33854.0,33851.0,5.54932069]
[1625569690719,0.9572,33858.0,33851.0,5.54932069]
[1625569690720,0.9572,33858.0,33854.0,3.7524]
[1625569690721,1.30564229,33858.0,33854.0,3.7524]
[1625569690805,0.54924229,33858.0,33854.0,3.7524]
[1625569690914,0.54924229,33858.0,33854.0,4.2524]
[1625569691011,0.2008,33858.0,33857.0,0.52242521]
[1625569691110,0.2008,33858.0,33857.0,1.35528521]
[1625569691196,0.2008,33858.0,33857.0,3.09329119]
[1625569691296,0.1618,33858.0,33857.0,3.09329119]
[1625569691397,0.4837,33860.0,33857.0,3.10592167]
[1625569691497,0.002,33860.0,33857.0,3.10592167]
[1625569691598,0.002,33860.0,33857.0,3.09678319]
[1625569691698,0.002,33860.0,33859.0,2.25490405]
[1625569691797,0.002,33860.0,33859.0,2.75490405]
[1625569691898,0.24057544,33866.0,33859.0,2.75490405]
[1625569691996,0.24057544,33866.0,33859.0,2.26403546]
[1625569692097,0.24057544,33866.0,33859.0,2.25490405]
[1625569692200,0.24057544,33866.0,33864.0,0.52027578]
[1625569692297,0.24057544,33866.0,33864.0,0.80885578]
[1625569692449,0.58878379,33866.0,33864.0,0.80885578]
[1625569692649,0.58878379,33866.0,33864.0,1.5305821]
[1625569693159,0.24057544,33866.0,33864.0,1.5305821]
[1625569693353,0.003,33865.0,33864.0,1.5305821]
[1625569696310,0.24257544,33866.0,33864.0,1.5305821]
[1625569696509,0.24257544,33866.0,33865.0,0.51922744]
[1625569699269,0.002,33866.0,33865.0,1.01922744]
[1625569699912,0.002,33866.0,33865.0,1.21922744]
[1625569700762,0.002,33866.0,33865.0,1.45980288]
[1625569701066,0.002,33866.0,33865.0,1.46887469]
[1625569701864,0.002,33866.0,33865.0,3.19191466]
[1625569702064,0.002,33866.0,33865.0,3.19540452]
[1625569702164,0.004,33876.0,33865.0,5.26020794]
[1625569702265,0.004,33876.0,33865.0,5.25671808]
[1625569702364,0.004,33876.0,33866.0,0.00905325]
[1625569702465,0.004,33876.0,33875.0,0.71605153]
[1625569702565,0.004,33876.0,33875.0,1.49559153]
[1625569702665,0.004,33876.0,33875.0,3.04335843]
[1625569702766,0.004,33876.0,33875.0,3.76508475]
[1625569703416,2.25328689,33891.0,33875.0,3.76508475]
[1625569703517,2.16657544,33891.0,33875.0,5.47852854]
[1625569703716,2.16657544,33891.0,33880.0,0.51396403]
[1625569703816,2.16657544,33891.0,33880.0,1.01396403]
[1625569704717,1.22087544,33891.0,33880.0,1.01396403]
[1625569704818,0.9803,33891.0,33880.0,1.49511491]
[1625569705322,0.005,33882.0,33880.0,1.49511491]
[1625569705420,0.005,33882.0,33881.0,4.8155]
[1625569705519,0.005,33882.0,33881.0,5.3155]
[1625569705619,0.005,33882.0,33881.0,7.19765982]
[1625569705929,0.43240427,33895.0,33881.0,7.19765982]
[1625569706020,0.08657315,33895.0,33886.0,1.36685826]